bitfinex/quotes_SOLUSD_20250527
["timestamp","ask_amount","ask_price","bid_price","bid_amount"]
[1748385453304,24.31761915,176.43,176.36,26.0]
[1748385453507,15.8914109,176.41,176.37,1.5284]
[1748385453797,15.8914109,176.39,176.38,34.92]
[1748385453996,15.8914109,176.39,176.38,44.04]
[1748385454502,21.56066652,176.39,176.38,44.04]
[1748385456310,15.8914109,176.39,176.38,44.04]
[1748385456502,5.66904448,176.4,176.38,44.04]
[1748385456710,15.8914109,176.4,176.38,44.04]
[1748385458704,21.56048383,176.4,176.38,44.04]
[1748385458911,15.8914109,176.39,176.38,44.04]
[1748385462318,21.56066652,176.39,176.38,44.04]
[1748385464504,15.8914109,176.39,176.38,44.04]
[1748385464704,21.56051221,176.4,176.38,44.04]
[1748385465392,34.54105976,176.39,176.38,44.04]
[1748385465597,34.54105976,176.39,176.38,34.9]
[1748385466316,34.54105976,176.39,176.37,9.12]
[1748385466612,15.8914109,176.38,176.37,9.12]
[1748385466821,15.8914109,176.38,176.37,44.02]
[1748385467023,15.8914109,176.38,176.37,9.12]
[1748385467199,15.8914109,176.38,176.37,44.02]
[1748385467606,24.31899011,176.39,176.37,44.02]
[1748385467801,15.8914109,176.41,176.37,44.02]
[1748385468200,15.8914109,176.4,176.37,44.02]
[1748385470124,15.8914109,176.4,176.37,9.12]
[1748385470325,34.54105976,176.41,176.38,34.9]
[1748385470807,15.8914109,176.42,176.38,34.9]
[1748385471417,34.54105976,176.43,176.38,40.5694351]
[1748385471797,40.20913122,176.43,176.38,40.5694351]
[1748385472704,15.8914109,176.42,176.38,40.5694351]
[1748385473123,5.66776977,176.44,176.38,40.5694351]
[1748385473331,21.55918067,176.44,176.38,40.5694351]
[1748385475325,15.8914109,176.43,176.38,129.5694351]
[1748385475581,21.55939136,176.43,176.38,129.5694351]
[1748385476743,21.55939136,176.43,176.38,123.9]
[1748385477252,15.8914109,176.41,176.38,123.9]
[1748385478148,15.8914109,176.41,176.39,9.12]
[1748385478446,15.8914109,176.41,176.4,34.9]
[1748385479039,24.3181655,176.42,176.4,44.02]
[1748385479040,40.2095764,176.42,176.4,44.02]
[1748385479342,40.2095764,176.42,176.38,89.0]
[1748385479551,24.3181655,176.42,176.39,44.02]
[1748385479761,18.64964886,176.42,176.39,44.02]
[1748385479916,5.66668555,176.47,176.39,44.02]
[1748385480116,15.8914109,176.43,176.39,133.02]
[1748385481235,5.66796628,176.44,176.39,138.68921389]
[1748385481436,21.55937718,176.44,176.39,138.68921389]
[1748385481929,21.55583784,176.44,176.39,148.90787156]
[1748385482632,15.88787156,176.43,176.39,133.02]
[1748385484539,21.55595722,176.43,176.39,133.02]
[1748385486425,34.53752042,176.45,176.41,15.88787156]
[1748385486619,34.53752042,176.45,176.42,34.9]
[1748385486818,40.20488388,176.45,176.42,34.9]
[1748385487639,15.88787156,176.44,176.42,34.9]
[1748385488748,21.5555223,176.44,176.42,34.9]
[1748385490760,5.66829157,176.42,176.39,98.12]
[1748385490933,15.88787156,176.41,176.4,34.88]
[1748385491640,34.53752042,176.41,176.39,98.12]
[1748385491849,34.53752042,176.41,176.4,34.88]
[1748385493042,40.20613331,176.41,176.4,34.88]
[1748385493234,5.66805916,176.43,176.4,34.88]
[1748385493437,40.20557958,176.43,176.4,34.88]
[1748385493638,15.88787156,176.42,176.4,34.88]
[1748385494029,15.88787156,176.41,176.4,34.88]
[1748385495270,40.20640145,176.41,176.4,34.88]
[1748385496557,40.20640145,176.41,176.36,104.88787156]
[1748385496754,18.64964886,176.38,176.35,10.08402107]
[1748385496963,15.88787156,176.36,176.35,19.20402107]
[1748385497168,21.55796768,176.37,176.35,54.08402107]
[1748385497672,40.20761654,176.37,176.36,34.88]
[1748385504178,34.53752042,176.37,176.36,34.88]
[1748385504358,5.66926346,176.39,176.36,34.88]
[1748385504681,14.16979665,176.44,176.37,15.88787156]
[1748385504682,21.55672502,176.41,176.37,15.88787156]
[1748385504879,40.20587211,176.42,176.38,34.9]
[1748385505758,15.88787156,176.41,176.38,34.9]
[1748385505958,21.55664305,176.41,176.38,34.9]
[1748385506263,15.88787156,176.4,176.38,34.9]
[1748385507977,21.55698123,176.4,176.38,34.9]
[1748385511580,15.88787156,176.4,176.38,34.9]
[1748385511962,21.55658498,176.41,176.38,34.9]
[1748385512581,5.66871342,176.41,176.38,34.9]
[1748385512779,21.55658498,176.41,176.38,34.9]
[1748385514802,15.88787156,176.43,176.38,50.78787156]
[1748385515091,34.53752042,176.44,176.39,15.88787156]
[1748385515988,5.66797029,176.43,176.39,10.16837782]
[1748385516188,5.66797029,176.43,176.39,99.16837782]
[1748385516571,15.83634811,176.43,176.39,89.0]
[1748385516966,15.83634811,176.43,176.4,9.1]
[1748385517166,15.83634811,176.43,176.41,34.88]
[1748385517997,21.55708993,176.43,176.41,34.88]
[1748385518495,5.66797029,176.43,176.41,34.88]
[1748385519668,14.16476829,176.5,176.42,15.88911964]
[1748385519876,18.64964886,176.47,176.43,15.88911964]
[1748385520085,18.64964886,176.47,176.44,34.88]
[1748385520086,34.5387685,176.47,176.44,34.88]
[1748385521381,18.64964886,176.47,176.44,34.88]
[1748385521585,15.88911964,176.48,176.44,40.5475445]
[1748385521890,5.66583767,176.5,176.44,56.43666414]
[1748385521891,34.5387685,176.49,176.44,56.43666414]
[1748385522099,0.42,176.54,176.46,15.88911964]
[1748385522277,18.64964886,176.5,176.47,59.86911964]
[1748385522480,15.88911964,176.52,176.47,59.86911964]
[1748385522690,0.42,176.54,176.5,15.88911964]
[1748385522980,19.06964886,176.54,176.51,34.88]
[1748385523301,0.42,176.54,176.51,34.88]
[1748385523978,40.62328951,176.54,176.51,34.88]
[1748385524596,16.30911964,176.54,176.51,34.88]
[1748385525179,21.97358031,176.54,176.51,34.88]
[1748385526803,40.60413082,176.54,176.48,1.5708]
[1748385526985,40.60413082,176.54,176.51,9.1]
[1748385528008,21.53510173,176.52,176.48,1.5708]
[1748385528306,21.53510173,176.52,176.49,43.96]
[1748385528489,21.53510173,176.52,176.49,132.96]
[1748385530410,5.66508044,176.52,176.49,132.96]
[1748385534709,5.66475953,176.53,176.49,132.96]
[1748385534886,40.18442968,176.53,176.49,132.96]
[1748385535814,15.87002129,176.52,176.49,89.0]
[1748385536121,15.87002129,176.52,176.5,43.96]
[1748385536589,5.66540139,176.51,176.5,43.96]
[1748385539114,21.53510173,176.52,176.5,43.96]
[1748385539911,15.82394668,176.52,176.5,43.96]
[1748385541118,10.15886624,176.51,176.5,43.96]
[1748385542020,5.66508044,176.52,176.5,43.96]
[1748385542321,15.82394668,176.52,176.5,43.96]
[1748385550426,15.82426763,176.51,176.5,43.96]
[1748385551013,5.66540139,176.51,176.5,43.96]
[1748385552329,15.82426763,176.51,176.5,43.96]
[1748385553417,15.82426763,176.51,176.5,43.94]
[1748385555134,15.82426763,176.51,176.49,89.0]
[1748385555337,15.82426763,176.51,176.5,43.94]
[1748385558635,34.47391649,176.51,176.5,43.94]
[1748385558935,34.47391649,176.51,176.41,90.6]
[1748385558936,18.64964886,176.5,176.41,90.6]
[1748385559136,10.15886624,176.42,176.41,90.6]
[1748385559509,10.15886624,176.42,176.41,116.36]
[1748385560748,34.47680667,176.42,176.4,9.08]
[1748385560918,24.31794043,176.42,176.41,34.84]
[1748385561120,34.47680667,176.42,176.41,34.84]
[1748385562035,40.21154153,176.42,176.41,34.84]
[1748385565456,5.66893424,176.4,176.36,1.5225]
[1748385565742,15.8936011,176.38,176.37,9.08]
[1748385565948,15.8936011,176.38,176.37,43.92]
[1748385566658,15.8936011,176.38,176.37,9.08]
[1748385566831,21.56317814,176.38,176.37,43.92]
[1748385569351,21.56317814,176.38,176.36,1.5225]
[1748385569557,21.56317814,176.38,176.37,9.08]
[1748385569739,21.56317814,176.38,176.37,43.92]
[1748385574343,15.8936011,176.39,176.37,43.92]
[1748385576129,5.66957704,176.38,176.37,43.92]
[1748385578052,21.56317814,176.38,176.37,43.92]
[1748385578859,21.56317814,176.38,176.37,34.84]
[1748385579854,21.56317814,176.38,176.35,9.08]
[1748385580050,21.56317814,176.38,176.37,34.84]
[1748385580051,5.66957704,176.38,176.37,34.84]
[1748385581068,19.84031164,176.41,176.37,34.84]
[1748385581232,15.8936011,176.38,176.37,34.84]
[1748385582039,10.17626572,176.38,176.37,34.84]
[1748385583766,15.84584276,176.38,176.37,34.84]
[1748385587395,5.66893424,176.4,176.37,34.84]
[1748385589841,5.66893424,176.4,176.38,43.92]
[1748385590042,21.56255306,176.4,176.38,43.92]
[1748385590443,21.56255306,176.4,176.39,34.84]
[1748385591040,21.56255306,176.4,176.35,95.2819]
[1748385591367,21.56255306,176.4,176.36,43.92]
[1748385593647,21.56255306,176.4,176.36,132.92]
[1748385594361,5.66893424,176.4,176.36,132.92]
[1748385594569,21.56255306,176.4,176.36,132.92]
[1748385599507,21.56255306,176.4,176.37,43.92]
[1748385599857,15.89361882,176.39,176.37,9.08]
[1748385600067,15.89361882,176.39,176.38,34.84]
[1748385601091,21.56230471,176.41,176.38,34.84]
[1748385602090,18.64964886,176.43,176.38,34.84]
[1748385602091,21.562013,176.42,176.38,34.84]
[1748385603286,21.56236349,176.41,176.38,34.84]
[1748385606382,15.89361882,176.4,176.37,9.08]
[1748385606591,15.89361882,176.38,176.37,43.9]
[1748385606788,18.64964886,176.4,176.37,43.9]
[1748385606789,15.89361882,176.39,176.37,43.9]
[1748385606957,15.89361882,176.4,176.37,43.9]
[1748385607165,21.56236349,176.41,176.37,43.9]
[1748385608170,15.89361882,176.43,176.37,43.9]
[1748385608688,21.56188555,176.43,176.37,49.56984934]
[1748385609679,21.56188555,176.43,176.37,75.56984934]
[1748385610073,10.1697271,176.43,176.37,75.56984934]
[1748385610472,10.1697271,176.42,176.37,69.9]
[1748385610712,10.1697271,176.4,176.38,34.82]
[1748385611384,10.1697271,176.41,176.38,34.82]
[1748385611764,5.66893424,176.4,176.38,34.82]
[1748385614097,5.66893424,176.4,176.39,34.82]
[1748385614695,5.66872976,176.41,176.39,34.82]
[1748385614889,15.83845686,176.41,176.39,34.82]
[1748385616592,5.66872976,176.41,176.39,34.82]
[1748385616971,15.83845686,176.41,176.39,34.82]
[1748385620280,10.1697271,176.4,176.39,34.82]
[1748385622203,15.83866134,176.4,176.39,34.82]
[1748385629387,5.66829157,176.42,176.39,34.82]
[1748385629589,10.1697271,176.41,176.39,34.82]
[1748385630908,5.66829157,176.42,176.39,34.82]
[1748385631104,5.66893424,176.4,176.39,34.82]
[1748385632516,15.83843976,176.41,176.39,34.82]
[1748385636841,5.66809158,176.43,176.39,34.82]
[1748385637119,5.66740731,176.45,176.39,41.99090192]
[1748385638295,15.83713441,176.45,176.39,41.99090192]
[1748385639802,5.66740731,176.45,176.39,41.99090192]
[1748385640002,26.0,176.46,176.39,41.99090192]
[1748385641296,5.66688656,176.47,176.4,0.14216157]
[1748385642206,15.83661366,176.47,176.41,5.66861289]
[1748385642731,5.66688656,176.47,176.41,5.66861289]
[1748385643027,15.83661366,176.47,176.41,5.66861289]
[1748385643402,15.83661366,176.47,176.4,5.81100618]
[1748385643933,10.1697271,176.45,176.39,41.99090596]
[1748385644100,15.83720084,176.45,176.39,41.99090596]
[1748385644604,5.66710352,176.46,176.4,0.14216157]
[1748385644805,15.83648111,176.47,176.4,0.14216157]
[1748385646117,10.1697271,176.48,176.41,5.66861289]
[1748385647311,10.1697271,176.48,176.42,0.14216157]
[1748385647624,10.1697271,176.49,176.42,0.14216157]
[1748385648994,15.83588447,176.49,176.43,5.66797029]
[1748385649198,15.83588447,176.49,176.44,43.86]
[1748385650121,18.64964886,176.5,176.44,43.86]
[1748385650122,15.83619465,176.48,176.44,43.86]
[1748385651004,5.66646755,176.48,176.44,43.86]
[1748385653631,5.6660434,176.49,176.44,43.86]
[1748385653805,15.8357705,176.49,176.44,43.86]
[1748385654012,10.1697271,176.48,176.44,43.86]
[1748385654532,15.8357705,176.49,176.44,43.86]
[1748385654722,10.1697271,176.48,176.44,43.86]
[1748385655632,15.83628872,176.48,176.44,43.86]
[1748385656524,5.66508044,176.52,176.45,1.5491]
[1748385656735,5.66508044,176.52,176.47,26.0]
[1748385657033,5.66508044,176.52,176.48,34.78]
[1748385657734,10.1697271,176.52,176.48,34.78]
[1748385658311,10.1697271,176.49,176.48,34.78]
[1748385658615,10.1697271,176.51,176.48,34.78]
[1748385659420,10.1697271,176.52,176.48,34.78]
[1748385659918,15.83448663,176.53,176.48,34.78]
[1748385660119,5.66475953,176.53,176.48,34.78]
[1748385660321,10.1697271,176.52,176.48,34.78]
[1748385662135,5.66572237,176.5,176.48,34.78]
[1748385664714,15.83524287,176.51,176.48,34.78]
[1748385665223,15.83524287,176.51,176.48,43.82]
[1748385666920,5.66551577,176.51,176.48,43.82]
[1748385667725,10.1697271,176.51,176.48,43.82]
[1748385669549,5.66572237,176.5,176.48,43.82]
[1748385669926,15.83544947,176.5,176.48,43.8]
[1748385670358,10.1697271,176.49,176.48,43.8]
[1748385670853,18.64964886,176.48,176.45,34.76]
[1748385671143,10.1697271,176.46,176.44,45.17812143]
[1748385671453,10.1697271,176.46,176.44,10.41812143]
[1748385673857,5.66707427,176.46,176.44,10.41812143]
[1748385676247,5.66668555,176.47,176.44,10.41812143]
[1748385676452,15.83641265,176.47,176.44,10.41812143]
[1748385678276,10.1697271,176.46,176.44,10.41812143]
[1748385678658,5.66732785,176.45,176.44,10.41812143]
[1748385678887,15.83705495,176.45,176.44,34.76]
[1748385680340,15.83705495,176.45,176.43,9.04]
[1748385680540,15.83705495,176.45,176.39,115.0]
[1748385680541,10.1697271,176.44,176.39,115.0]
[1748385680857,10.1697271,176.4,176.38,9.04]
[1748385681042,10.1697271,176.39,176.38,9.04]
[1748385683455,15.83898272,176.39,176.38,9.04]
[1748385684070,21.56861992,176.39,176.38,9.04]
[1748385691773,21.56772359,176.39,176.38,9.04]
[1748385694969,18.64964886,176.38,176.36,34.78]
[1748385695146,21.56836647,176.37,176.36,34.78]
[1748385695873,21.56836647,176.37,176.35,34.78]
[1748385702254,15.89846797,176.36,176.35,34.78]
[1748385702766,21.56868797,176.36,176.35,34.78]
[1748385703268,21.56804501,176.38,176.35,34.78]
[1748385705377,15.89846797,176.36,176.35,34.78]
[1748385705564,15.89846797,176.37,176.35,34.78]
[1748385705978,15.84588757,176.38,176.35,34.78]
[1748385706688,18.64964886,176.38,176.35,34.78]
[1748385706982,15.84556615,176.39,176.35,34.78]
[1748385707762,10.17631053,176.38,176.35,34.78]
[1748385709191,5.6698985,176.37,176.35,34.78]
[1748385710982,15.84620903,176.37,176.35,34.78]
[1748385714486,15.84620903,176.37,176.34,98.04]
[1748385714688,15.84620903,176.37,176.35,34.76]
[1748385722316,10.17631053,176.38,176.35,34.76]
[1748385722604,10.17631053,176.37,176.35,34.76]
[1748385725305,5.67022,176.36,176.35,34.76]
[1748385728385,15.84653053,176.36,176.35,34.76]
[1748385728586,5.67022,176.36,176.35,34.76]
[1748385733291,5.67022,176.36,176.34,43.8]
[1748385733815,5.67022,176.36,176.34,9.04]
[1748385734023,5.67022,176.36,176.35,34.76]
[1748385746326,15.84653053,176.36,176.35,34.76]
[1748385752126,15.84653053,176.36,176.33,9.04]
[1748385752127,48.6717294,176.36,176.33,9.04]
[1748385752430,10.17631053,176.34,176.33,43.78]
[1748385753359,15.84717363,176.34,176.33,9.04]
[1748385754521,15.84717363,176.34,176.31,19.25710809]
[1748385754723,10.17631053,176.33,176.32,34.74]
[1748385755231,15.84749524,176.33,176.32,34.74]
[1748385755636,34.4971441,176.33,176.31,19.25710809]
[1748385755814,10.17631053,176.32,176.31,9.02]
[1748385757332,5.66957704,176.38,176.31,9.02]
[1748385757534,4.23312542,176.37,176.32,10.17631053]
[1748385757725,2.11656274,176.37,176.33,44.93631053]
[1748385758236,2.11656274,176.37,176.33,34.76]
[1748385758442,2.11656274,176.37,176.33,44.93631053]
[1748385758744,12.29287327,176.37,176.33,34.76]
[1748385759149,2.11656274,176.37,176.33,34.76]
[1748385759445,2.11656274,176.37,176.33,46.48361053]
[1748385759609,2.11656274,176.37,176.34,10.17631053]
[1748385760734,2.11656274,176.37,176.36,10.17631053]
[1748385760917,2.11656274,176.37,176.36,10.3184721]
[1748385761115,2.11656274,176.37,176.36,17.9468721]
[1748385761523,2.11656274,176.37,176.36,1.5473]
[1748385761729,2.11656274,176.37,176.36,45.3073]
[1748385762032,2.11656274,176.37,176.36,10.5673]
[1748385762222,18.01392725,176.37,176.36,43.76]
[1748385762422,23.68382575,176.37,176.36,43.76]
[1748385764337,7.78646124,176.37,176.36,43.76]
[1748385764843,2.11656274,176.37,176.36,43.76]
[1748385765231,2.11656274,176.37,176.36,9.02]
[1748385765429,2.11656274,176.37,176.36,43.76]
[1748385766145,7.78646124,176.37,176.36,43.76]
[1748385769044,23.68382575,176.37,176.36,43.76]
[1748385771331,23.68382575,176.37,176.33,89.0]
[1748385771332,42.33347461,176.37,176.33,89.0]
[1748385771526,15.89736451,176.35,176.34,34.74]
[1748385771733,15.89736451,176.35,176.33,9.02]
[1748385771936,15.89736451,176.35,176.34,34.74]
[1748385772250,21.56790604,176.35,176.34,34.74]
[1748385774042,5.67054153,176.35,176.34,34.74]
[1748385774225,21.56790604,176.35,176.34,34.74]
[1748385774548,5.6703327,176.36,176.34,34.74]
[1748385774734,7.78653253,176.37,176.34,34.74]
[1748385774935,23.68389704,176.37,176.34,34.74]
[1748385775244,18.01392725,176.37,176.34,34.74]
[1748385775544,23.68393619,176.37,176.34,34.74]
[1748385778131,15.89736451,176.36,176.34,34.74]
[1748385778522,15.89736451,176.35,176.34,34.74]
[1748385779737,21.56790604,176.35,176.34,34.74]
[1748385786368,5.67054153,176.35,176.34,34.74]
[1748385788161,21.56790604,176.35,176.34,34.74]
[1748385788558,15.89736451,176.35,176.34,34.74]
[1748385789046,5.67022,176.36,176.34,34.74]
[1748385789238,15.89736451,176.35,176.34,34.74]
[1748385790482,21.56758451,176.36,176.34,34.74]
[1748385791968,15.8465157,176.36,176.34,34.74]
[1748385792660,10.1762957,176.36,176.34,34.74]
[1748385793559,17.96278931,176.37,176.34,34.74]
[1748385794475,15.84654175,176.36,176.34,34.74]
[1748385795265,5.67024605,176.36,176.34,34.74]
[1748385795467,15.84654175,176.36,176.34,34.74]
[1748385795681,10.1762957,176.35,176.33,98.02]
[1748385795850,10.1762957,176.34,176.33,98.02]
[1748385796049,10.1762957,176.34,176.33,132.74]
[1748385796460,28.82594456,176.34,176.29,98.02]
[1748385796664,10.1762957,176.31,176.3,34.72]
[1748385797457,15.84812373,176.31,176.3,34.72]
[1748385798647,5.67182803,176.31,176.3,34.72]
[1748385799076,5.67182803,176.31,176.29,9.02]
[1748385799377,5.67182803,176.31,176.29,43.74]
[1748385799949,15.9085211,176.32,176.29,43.74]
[1748385800148,15.9085211,176.31,176.29,43.74]
[1748385801977,21.58046911,176.31,176.29,9.02]
[1748385802172,21.58046911,176.31,176.3,34.72]
[1748385803056,5.67194801,176.31,176.3,34.72]
[1748385804175,21.58046911,176.31,176.29,9.02]
[1748385804378,15.9085211,176.3,176.29,43.74]
[1748385805081,21.58046911,176.31,176.29,43.74]
[1748385806496,24.32083357,176.33,176.29,43.74]
[1748385806797,15.9085211,176.32,176.29,43.74]
[1748385807877,21.58029425,176.32,176.29,43.74]
[1748385809363,5.67177315,176.32,176.29,43.74]
[1748385810888,5.67095523,176.34,176.3,15.9085211]
[1748385811053,5.67064087,176.35,176.31,15.9085211]
[1748385811257,5.67064087,176.35,176.32,34.72]
[1748385811659,5.67022084,176.36,176.32,50.6285211]
[1748385811859,7.7865529,176.37,176.33,15.9085211]
[1748385813497,2.11656274,176.37,176.33,94.67113275]
[1748385813702,2.11656274,176.37,176.36,15.9085211]
[1748385813882,2.11656274,176.37,176.36,148.6285211]
[1748385816906,2.11656274,176.37,176.36,132.72]
[1748385820306,23.69498234,176.37,176.36,9.0]
[1748385837523,7.78646124,176.37,176.36,9.0]
[1748385837733,23.69498234,176.37,176.36,9.0]
[1748385838099,2.11656274,176.37,176.36,9.0]
[1748385838319,2.11656274,176.37,176.36,141.60678267]
[1748385839202,2.11656274,176.37,176.36,147.27700267]
[1748385840944,2.11656274,176.37,176.36,141.60678267]
[1748385841345,2.11656274,176.37,176.36,125.5561]
[1748385841643,23.69498234,176.37,176.36,34.7]
[1748385842943,2.11656274,176.37,176.36,34.7]
[1748385844028,7.78646124,176.37,176.36,34.7]
[1748385848752,23.69498234,176.37,176.36,34.7]
[1748385849645,7.78646124,176.37,176.36,34.7]
[1748385860171,23.69498234,176.37,176.35,9.0]
[1748385860471,23.69498234,176.37,176.35,43.68]
[1748385860653,15.9085211,176.36,176.35,43.68]
[1748385861062,23.69498234,176.37,176.35,43.68]
[1748385863366,15.9085211,176.36,176.35,43.68]
[1748385863743,21.5787411,176.36,176.35,43.68]
[1748385864073,5.67022,176.36,176.35,43.68]
[1748385865667,18.02508384,176.37,176.35,43.68]
[1748385865668,2.11656274,176.37,176.35,59.5885211]
[1748385865855,2.11656274,176.37,176.35,43.68]
[1748385866347,7.78656052,176.37,176.35,43.68]
[1748385867582,2.11656274,176.37,176.35,43.68]
[1748385868671,2.11656274,176.37,176.35,132.68]
[1748385877968,2.11656274,176.37,176.36,8.98]
[1748385879093,2.11656274,176.37,176.36,24.82359847]
[1748385879682,2.11656274,176.37,176.36,122.14446004]
[1748385881978,2.11656274,176.37,176.36,127.85663603]
[1748385883187,5.66768639,176.44,176.39,26.0]
[1748385883390,5.66768639,176.44,176.4,50.56555446]
[1748385885181,5.66668555,176.47,176.4,50.56555446]
[1748385885485,15.88555446,176.45,176.4,50.56555446]
[1748385886481,5.66764905,176.44,176.4,139.56555446]
[1748385889389,0.42,176.42,176.4,139.56555446]
[1748385889594,0.42,176.42,176.41,15.88555446]
[1748385889766,0.42,176.42,176.41,106.53291603]
[1748385891591,0.42,176.42,176.41,112.20152892]
[1748385893686,6.08829157,176.42,176.41,97.98]
[1748385893889,6.08829157,176.42,176.41,132.64]
[1748385894895,0.42,176.42,176.41,148.52555446]
[1748385896679,0.42,176.42,176.41,113.86555446]
[1748385896872,0.42,176.42,176.41,148.52555446]
[1748385897196,6.08829157,176.42,176.41,148.52555446]
[1748385897787,6.08829157,176.42,176.41,132.64]
[1748385897981,6.08829157,176.42,176.41,148.52555446]
[1748385898294,0.42,176.42,176.41,148.52555446]
[1748385902474,6.08829157,176.42,176.41,97.98]
[1748385902777,6.08829157,176.42,176.41,132.62]
[1748385903101,0.42,176.42,176.41,148.50555446]
[1748385913722,0.42,176.42,176.41,148.64771603]
[1748385914081,0.42,176.42,176.41,154.31632892]
[1748385914679,0.42,176.42,176.41,155.88612892]
[1748385915428,14.16327635,176.52,176.44,26.0]
[1748385915716,15.88555446,176.51,176.46,15.88555446]
[1748385915922,15.88555446,176.51,176.47,8.98]
[1748385916490,21.55095585,176.51,176.47,8.98]
[1748385916887,42.46885617,176.6,176.5,15.88555446]
[1748385917098,42.46885617,176.6,176.47,36.5849]
[1748385917099,34.53520332,176.56,176.51,50.52555446]
[1748385917408,15.88555446,176.53,176.51,34.64]
[1748385918586,5.66508044,176.52,176.51,34.64]
[1748385920914,5.66475953,176.53,176.51,34.64]
[1748385923093,21.55031399,176.53,176.51,34.64]
[1748385923712,5.66475953,176.53,176.51,34.64]
[1748385924414,21.55031399,176.53,176.51,34.64]
[1748385924598,15.88555446,176.52,176.51,34.64]
[1748385925299,15.88555446,176.56,176.51,50.52555446]
[1748385925502,15.88555446,176.55,176.52,34.62]
[1748385926105,5.66443865,176.54,176.52,34.62]
[1748385926422,21.54999311,176.54,176.52,34.62]
[1748385926790,15.88555446,176.53,176.52,34.62]
[1748385927611,21.54999311,176.54,176.52,34.62]
[1748385929408,5.66443865,176.54,176.52,34.62]
[1748385929617,21.54999311,176.54,176.52,34.62]
[1748385931819,15.88555446,176.53,176.51,34.62]
[1748385932722,21.54999311,176.54,176.51,34.62]
[1748385934120,15.88555446,176.53,176.51,34.62]
[1748385934727,15.88555446,176.52,176.47,97.54]
[1748385934916,15.88555446,176.5,176.48,34.62]
[1748385935217,5.6660434,176.49,176.48,34.62]
[1748385936625,21.55159786,176.49,176.48,34.62]
[1748385937428,5.6660434,176.49,176.48,34.62]
[1748385938098,5.6660434,176.49,176.45,15.88555446]
[1748385938299,5.6660434,176.49,176.46,34.62]
[1748385938499,5.6660434,176.49,176.45,15.88555446]
[1748385938700,5.6660434,176.49,176.47,34.62]
[1748385939724,5.66572237,176.5,176.47,34.62]
[1748385940226,21.55127683,176.5,176.47,34.62]
[1748385941057,21.55127683,176.5,176.45,104.46555446]
[1748385941326,21.55127683,176.5,176.46,34.62]
[1748385944151,5.66572237,176.5,176.46,34.62]
[1748385944346,21.55127683,176.5,176.46,34.62]
[1748385944505,5.66572237,176.5,176.46,34.62]
[1748385944705,5.66572237,176.5,176.45,104.46555446]
[1748385944913,5.66572237,176.5,176.46,34.62]
[1748385945721,5.66572237,176.5,176.46,123.2]
[1748385946638,5.66540346,176.51,176.46,144.75252689]
[1748385949144,5.66510872,176.52,176.47,41.88555446]
[1748385949313,21.55066318,176.52,176.47,41.88555446]
[1748385950159,21.55066318,176.52,176.46,88.58]
[1748385950160,15.88555446,176.49,176.46,88.58]
[1748385950316,15.88555446,176.49,176.48,34.62]
[1748385951421,21.55159786,176.49,176.48,34.62]
[1748385951624,5.6660434,176.49,176.48,34.62]
[1748385954231,5.66540139,176.51,176.48,34.62]
[1748385954730,21.55095585,176.51,176.48,34.62]
[1748385958748,15.88555446,176.5,176.48,34.62]
[1748385959163,14.16270111,176.52,176.48,34.62]
[1748385959335,15.88555446,176.51,176.48,34.62]
[1748385960839,5.66572237,176.5,176.48,34.62]
[1748385961154,21.55127683,176.5,176.48,34.62]
[1748385963954,5.66572237,176.5,176.48,34.62]
[1748385964133,5.66443865,176.54,176.48,34.62]
[1748385964331,15.88555446,176.53,176.48,34.62]
[1748385964526,21.54999311,176.54,176.49,15.88555446]
[1748385964833,5.66443865,176.54,176.49,15.88555446]
[1748385965035,21.5490307,176.57,176.51,15.88555446]
[1748385965350,15.88555446,176.56,176.52,50.50555446]
[1748385965541,21.5490307,176.57,176.52,50.50555446]
[1748385965727,5.66347624,176.57,176.53,15.88555446]